bitfinex/quotes_SOLUSD_20241115
["timestamp","ask_amount","ask_price","bid_price","bid_amount"]
[1731633170031,23.87782056,209.13,209.06,40.21172056]
[1731633170247,23.87782056,209.13,209.06,16.3339]
[1731633171031,23.87782056,209.13,209.06,21.117]
[1731633172158,23.87782056,209.1,209.06,16.3339]
[1731633172337,23.87782056,209.09,209.06,16.3339]
[1731633172537,23.87782056,209.07,208.99,15.5771]
[1731633172747,23.87782056,209.02,208.99,15.5771]
[1731633173445,23.87782056,209.01,208.99,15.5771]
[1731633173626,23.87782056,209.0,208.99,15.5771]
[1731633173833,23.87782056,209.01,208.99,15.5771]
[1731633174758,28.66202056,209.02,208.99,15.5771]
[1731633175952,23.87782056,209.04,208.99,15.5771]
[1731633176531,28.66162056,209.04,208.99,15.5771]
[1731633177167,23.87782056,209.01,208.99,15.5771]
[1731633177451,23.87782056,209.03,208.99,15.5771]
[1731633177833,23.87782056,209.02,208.99,15.5771]
[1731633178230,23.87782056,209.01,208.99,15.5771]
[1731633178436,23.87782056,209.02,208.99,15.5771]
[1731633179250,4.7828,209.08,208.99,15.5771]
[1731633179251,23.87782056,209.03,208.99,15.5771]
[1731633179443,23.87782056,209.04,208.99,20.3619]
[1731633179632,23.87782056,209.04,208.99,15.5771]
[1731633180042,23.87782056,209.04,208.99,20.3619]
[1731633180258,13.0139,209.12,208.99,20.3619]
[1731633180259,23.87782056,209.05,208.99,56.20192056]
[1731633180437,23.87782056,209.09,209.01,23.87782056]
[1731633181056,23.87782056,209.08,209.01,23.87782056]
[1731633181262,23.87782056,209.05,208.99,32.3241]
[1731633181560,23.87782056,209.03,208.99,32.3241]
[1731633181855,23.87782056,209.04,208.99,32.3241]
[1731633182160,23.87782056,209.06,208.99,56.46353516]
[1731633182667,23.87782056,209.04,208.99,27.8009146]
[1731633182957,23.87782056,209.01,208.99,15.8387146]
[1731633183344,23.87782056,209.0,208.99,0.2616146]
[1731633184249,28.66242056,209.0,208.99,0.2616146]
[1731633185947,4.7846,209.0,208.99,0.2616146]
[1731633186264,28.66242056,209.0,208.99,0.2616146]
[1731633188743,20.0,209.05,208.99,0.2616146]
[1731633188940,13.74181803,209.0,208.99,0.2616146]
[1731633189343,13.74181803,209.03,208.99,0.2616146]
[1731633189850,13.74181803,209.08,209.01,13.74181803]
[1731633190378,13.74181803,209.1,209.04,16.5209]
[1731633191062,13.74181803,209.11,209.05,4.7835]
[1731633191241,13.74181803,209.11,209.05,30.48411803]
[1731633191568,13.74181803,209.11,209.05,16.7423]
[1731633192254,13.74181803,209.09,209.04,16.5209]
[1731633192740,21.96748808,209.08,209.04,16.5209]
[1731633192941,21.96748808,209.06,209.04,16.5209]
[1731633193177,16.8335,209.16,209.04,16.5209]
[1731633193178,21.96748808,209.05,209.04,16.5209]
[1731633193463,21.96748808,209.06,209.0,0.12549]
[1731633193672,16.7335,209.16,209.0,0.12549]
[1731633193673,21.96748808,209.1,209.0,0.12549]
[1731633193961,21.96748808,209.11,209.03,21.96748808]
[1731633194261,21.96748808,209.1,209.04,4.7837]
[1731633194854,21.96748808,209.09,209.02,26.75148808]
[1731633195164,21.96748808,209.06,209.0,4.7844]
[1731633195370,21.96748808,209.07,209.0,26.75188808]
[1731633195872,21.96748808,209.03,208.99,16.0914146]
[1731633196353,21.96748808,209.01,208.99,0.2616146]
[1731633198664,21.96748808,209.0,208.99,0.2616146]
[1731633203167,26.75188808,209.01,208.99,0.2616146]
[1731633203890,21.96748808,209.03,208.99,0.2616146]
[1731633204498,21.96748808,209.0,208.99,0.2616146]
[1731633207090,4.7844,209.02,208.99,0.2616146]
[1731633207091,21.96748808,209.02,208.99,0.2616146]
[1731633207297,21.96748808,209.05,208.99,5.0464146]
[1731633207480,21.96748808,209.06,209.0,15.2116]
[1731633207671,21.96748808,209.08,209.01,21.96748808]
[1731633207866,21.96748808,209.1,209.01,21.96748808]
[1731633208072,21.96748808,209.1,209.03,21.96748808]
[1731633208272,21.96748808,209.13,209.06,21.96748808]
[1731633208488,21.96748808,209.15,209.08,15.9141]
[1731633208678,21.96748808,209.22,209.08,15.9141]
[1731633208679,21.96748808,209.13,209.08,15.9141]
[1731633208887,4.7798,209.21,209.08,15.9141]
[1731633208888,21.96748808,209.1,209.08,15.9141]
[1731633209079,21.96748808,209.09,209.08,15.9141]
[1731633210374,16.9295,209.21,209.08,15.9141]
[1731633210375,21.96748808,209.1,209.08,15.9141]
[1731633211486,21.96748808,209.09,209.03,28.5494]
[1731633211692,21.96748808,209.06,209.03,28.5494]
[1731633212373,21.96748808,209.05,209.03,16.5895]
[1731633212571,21.96748808,209.04,209.03,16.5895]
[1731633213290,21.96748808,209.04,209.02,0.2616146]
[1731633213491,21.96748808,209.03,209.02,0.2616146]
[1731633216797,13.73707108,209.03,209.02,0.2616146]
[1731633225307,13.73707108,209.03,208.92,15.7043]
[1731633225308,71.25102616,209.03,208.92,15.7043]
[1731633225602,13.73707108,208.94,208.92,15.7043]
[1731633226701,13.73707108,208.94,208.8,16.7532]
[1731633226702,13.73707108,208.93,208.81,16.5680427]
[1731633226906,13.73707108,208.86,208.81,16.5680427]
[1731633227285,13.73707108,208.83,208.81,16.5680427]
[1731633228000,13.73707108,208.89,208.81,16.5680427]
[1731633228001,13.73707108,208.82,208.81,16.5680427]
[1731633228305,13.73707108,208.82,208.81,0.4539427]
[1731633228497,13.73707108,208.82,208.7,15.5795]
[1731633228498,27.47414216,208.82,208.7,15.5795]
[1731633228678,13.73707108,208.71,208.63,4.793]
[1731633228884,13.73707108,208.7,208.63,16.7758]
[1731633229299,13.73707108,208.69,208.63,16.7758]
[1731633229500,13.73707108,208.69,208.62,21.7289]
[1731633229501,13.73707108,208.67,208.6,18.98471378]
[1731633229704,6.0009,208.75,208.6,18.98471378]
[1731633229705,13.73707108,208.69,208.62,13.73707108]
[1731633229899,13.73707108,208.68,208.61,13.73707108]
[1731633230377,13.73707108,208.69,208.61,13.73707108]
[1731633230579,13.73707108,208.69,208.62,4.7934]
[1731633230796,22.04901028,208.69,208.62,4.7934]
[1731633231411,22.04901028,208.69,208.62,16.7769]
[1731633231580,22.04901028,208.69,208.62,38.82591028]
[1731633231781,22.04901028,208.72,208.64,22.04901028]
[1731633232102,22.04901028,208.75,208.68,22.04901028]
[1731633232298,22.04901028,208.74,208.67,22.04901028]
[1731633232485,22.04901028,208.74,208.66,22.04901028]
[1731633232899,22.04901028,208.75,208.68,22.04901028]
[1731633233091,22.04901028,208.74,208.67,38.64361028]
[1731633233398,4.7891,208.81,208.68,22.04901028]
[1731633233399,22.04901028,208.75,208.68,22.04901028]
[1731633233907,22.04901028,208.75,208.69,4.7917]
[1731633234711,22.04901028,208.78,208.71,22.04901028]
[1731633234884,22.04901028,208.8,208.73,22.04901028]
[1731633235294,22.04901028,208.82,208.74,22.04901028]
[1731633235803,22.04901028,208.87,208.79,37.82801028]
[1731633235980,22.04901028,208.89,208.81,22.04901028]
[1731633236185,12.15281723,208.94,208.8,6.231]
[1731633236498,0.1,208.93,208.79,15.779]
[1731633236802,0.3326547,208.93,208.79,15.779]
[1731633237182,22.04901028,208.83,208.79,15.779]
[1731633237591,22.04901028,208.83,208.8,4.7892]
[1731633237799,22.04901028,208.84,208.8,4.7892]
[1731633238005,22.04901028,208.87,208.8,16.7623]
[1731633238211,0.1,208.97,208.8,16.7623]
[1731633238212,22.04901028,208.85,208.8,16.7623]
[1731633238394,22.04901028,208.82,208.8,11.9731]
[1731633238707,22.04901028,208.84,208.8,11.9731]
[1731633238914,0.2,208.94,208.8,11.9731]
[1731633239206,22.04901028,208.87,208.8,38.81131028]
[1731633239411,22.04901028,208.87,208.8,16.7623]
[1731633239611,22.04901028,208.86,208.8,16.7623]
[1731633239991,22.04901028,208.83,208.8,16.7623]
[1731633240191,22.04901028,208.88,208.8,38.81131028]
[1731633240410,22.04901028,208.9,208.82,22.04901028]
[1731633240593,22.04901028,208.91,208.83,22.04901028]
[1731633240786,22.04901028,208.9,208.83,22.04901028]
[1731633241208,22.04901028,208.9,208.84,0.12549]
[1731633241414,22.04901028,208.93,208.86,22.04901028]
[1731633241709,22.04901028,208.93,208.87,4.7876]
[1731633241913,22.04901028,208.96,208.89,22.04901028]
[1731633242223,22.04901028,209.0,208.92,22.04901028]
[1731633242387,22.04901028,209.0,208.93,22.04901028]
[1731633242582,22.04901028,209.0,208.88,6.5524]
[1731633242583,22.04901028,209.0,208.92,37.22701028]
[1731633242782,22.04901028,208.97,208.92,15.178]
[1731633243003,22.04901028,209.0,208.92,37.22701028]
[1731633243320,15.75848902,209.1,208.92,37.22701028]
[1731633243321,4.7823,209.11,208.99,22.04901028]
[1731633243491,12.15,209.21,208.99,0.1]
[1731633243690,4.7801,209.2,208.99,0.1]
[1731633244010,4.7801,209.2,209.04,0.1]
[1731633244315,32.89321028,209.22,209.04,0.1]
[1731633244518,32.89321028,209.22,209.07,22.04901028]
[1731633244519,22.04901028,209.15,209.07,22.04901028]
[1731633244808,32.89321028,209.22,209.05,22.04901028]
[1731633244809,22.04901028,209.12,209.05,22.04901028]
[1731633244987,22.04901028,209.13,209.06,22.04901028]
[1731633245190,22.04901028,209.12,209.07,4.783]
[1731633245799,22.04901028,209.13,209.07,4.783]
[1731633246001,22.04901028,209.11,209.05,16.7418]
[1731633246910,22.04901028,209.17,209.08,22.04901028]
[1731633247106,22.04901028,209.2,209.12,22.04901028]
[1731633247314,22.04901028,209.2,209.07,16.3569]
[1731633247315,22.04901028,209.2,209.13,26.83071028]
[1731633247612,22.04901028,209.18,209.13,16.7359]
[1731633247793,4.7793,209.24,209.13,16.7359]
[1731633247993,22.04901028,209.19,209.13,16.7359]
[1731633248614,22.04901028,209.2,209.13,16.7359]
[1731633248996,22.04901028,209.21,209.13,38.78491028]
[1731633249225,4.7782,209.28,209.13,38.78491028]
[1731633249226,22.04901028,209.17,209.13,11.9542]
[1731633249389,22.04901028,209.16,209.09,4.7824]
[1731633249597,22.04901028,209.14,209.09,4.7824]
[1731633249812,22.04901028,209.15,209.09,4.7824]
[1731633250411,22.04901028,209.13,209.08,11.9571]
[1731633250616,22.04901028,209.15,209.08,16.7399]
[1731633251002,22.04901028,209.16,209.08,38.78891028]
[1731633251205,22.04901028,209.18,209.11,22.04901028]
[1731633251389,22.04901028,209.19,209.11,22.04901028]
[1731633251592,22.04901028,209.18,209.1,22.04901028]
[1731633252593,22.04901028,209.18,209.12,4.7819]
[1731633253821,22.04901028,209.17,209.1,4.7822]
[1731633254305,22.04901028,209.16,209.1,4.7822]
[1731633254507,22.04901028,209.15,209.1,4.7822]
[1731633254720,22.04901028,209.15,209.09,11.9565]
[1731633255917,11.9485,209.23,209.09,11.9565]
[1731633256118,22.04901028,209.22,209.09,11.9565]
[1731633256296,22.04901028,209.17,209.1,22.04901028]
[1731633256499,22.04901028,209.17,209.09,34.00551028]
[1731633256697,22.04901028,209.16,209.09,16.7391]
[1731633257197,22.04901028,209.14,209.09,16.7391]
[1731633258920,22.04901028,209.15,209.09,16.7391]
[1731633261222,22.04901028,209.14,209.09,16.7391]
[1731633262020,22.04901028,209.13,209.07,16.2569]
[1731633262228,22.04901028,209.12,209.07,21.0398]
[1731633262531,22.04901028,209.11,209.07,21.0398]
[1731633262708,22.04901028,209.11,209.07,16.2569]
[1731633262916,22.04901028,209.08,209.07,16.2569]
[1731633263208,22.04901028,209.08,209.01,16.2935]
[1731633263400,22.04901028,209.07,209.01,16.2935]
[1731633264316,22.04901028,209.07,209.02,4.7842]
[1731633265440,22.04901028,209.06,209.02,4.7842]
[1731633266335,22.04901028,209.12,209.04,22.04901028]
[1731633266512,6.4671,209.16,209.06,22.04901028]
[1731633266513,22.04901028,209.14,209.06,22.04901028]
[1731633266831,22.04901028,209.13,209.06,22.04901028]
[1731633267006,22.04901028,209.13,209.05,22.04901028]
[1731633267510,11.2482,209.16,209.05,22.04901028]
[1731633267511,26.83091028,209.12,209.05,26.83251028]
[1731633268022,22.04901028,209.12,209.05,38.79131028]
[1731633268207,22.04901028,209.15,209.08,22.04901028]
[1731633268406,22.04901028,209.16,209.09,22.04901028]
[1731633268807,22.04901028,209.15,209.08,22.04901028]
[1731633269606,22.04901028,209.15,209.09,4.7826]
[1731633269821,22.04901028,209.14,209.09,4.7826]
[1731633270407,22.04901028,209.1,209.02,4.784]
[1731633270608,22.04901028,209.08,209.02,4.784]
[1731633271141,22.04901028,209.09,209.02,26.83301028]
[1731633271308,22.04901028,209.12,209.05,22.04901028]
[1731633271627,22.04901028,209.14,209.06,26.83231028]
[1731633272128,22.04901028,209.13,209.06,16.7415]
[1731633272333,22.04901028,209.14,209.07,22.04901028]
[1731633272919,22.04901028,209.14,209.06,38.79051028]
[1731633273535,4.7787,209.26,209.13,37.92611028]
[1731633273744,22.04901028,209.25,209.17,22.04901028]
[1731633274239,22.04901028,209.24,209.16,22.04901028]
[1731633275307,22.04901028,209.23,209.16,22.04901028]
[1731633275530,26.82771028,209.26,209.18,22.04901028]
[1731633276842,26.82771028,209.26,209.18,26.82931028]
[1731633277528,22.04901028,209.26,209.18,38.78071028]
[1731633277731,0.4539427,209.33,209.25,22.04901028]
[1731633278028,0.4539427,209.33,209.21,0.1]
[1731633278029,0.4539427,209.33,209.28,22.04901028]
[1731633278236,0.4539427,209.33,209.26,22.04901028]
[1731633278422,22.04901028,209.32,209.24,22.04901028]
[1731633278624,22.04901028,209.3,209.22,22.04901028]
[1731633279632,22.04901028,209.3,209.23,4.7794]
[1731633280432,22.04901028,209.29,209.23,4.7794]
[1731633280637,22.04901028,209.25,209.19,15.9087]
[1731633280828,22.04901028,209.23,209.19,15.9087]
[1731633282327,22.04901028,209.23,209.19,20.689]
[1731633282629,22.04901028,209.23,209.19,15.9087]
[1731633285333,22.04901028,209.25,209.19,20.6889]
[1731633287032,14.95401959,209.24,209.19,20.6889]
[1731633287544,14.95401959,209.24,209.19,15.9087]
[1731633289036,14.95401959,209.22,209.19,15.9087]
[1731633289338,14.95401959,209.28,209.19,15.9087]
[1731633289339,14.95401959,209.21,209.19,15.9087]
[1731633290522,14.95401959,209.2,209.14,4.7812]
[1731633291239,14.95401959,209.21,209.14,16.7349]
[1731633292532,14.95401959,209.19,209.14,11.9537]
[1731633292738,14.95401959,209.22,209.15,15.07950959]
[1731633293234,14.95401959,209.22,209.15,0.12549]
[1731633293733,14.95401959,209.19,209.14,11.9537]
[1731633293942,14.95401959,209.28,209.14,11.9537]
[1731633293943,14.95401959,209.18,209.14,11.9537]
[1731633294124,14.95401959,209.15,209.13,15.1866]
[1731633294437,14.95401959,209.14,209.13,15.1866]
[1731633298723,19.73561959,209.14,209.08,15.6152]
[1731633298921,14.95401959,209.09,209.05,4.7834]
[1731633299126,14.95401959,209.09,209.05,11.9586]
[1731633299344,14.95401959,209.08,209.05,11.9586]
[1731633300248,14.95401959,209.1,209.05,11.9586]
[1731633301254,14.95401959,209.14,209.06,15.07950959]
[1731633302253,14.95401959,209.14,209.08,0.12549]
[1731633302433,19.73551959,209.14,209.07,16.7407]
[1731633302637,14.95401959,209.09,209.03,20.399]
[1731633302823,14.95401959,209.08,209.03,20.399]
[1731633303144,14.95401959,209.08,209.03,27.575]
[1731633303446,14.95401959,209.06,209.0,4.7846]
[1731633304040,16.7352,209.14,209.03,14.95401959]
[1731633304041,14.95401959,209.1,209.03,14.95401959]
[1731633304346,14.95401959,209.15,209.07,14.95401959]
[1731633304550,14.95401959,209.17,209.09,14.95401959]
[1731633304731,14.95401959,209.19,209.11,14.95401959]
[1731633305129,14.95401959,209.19,209.12,0.12549]
[1731633305352,14.95401959,209.17,209.09,31.00661959]
[1731633305846,14.95401959,209.17,209.1,0.12549]
[1731633306047,14.95401959,209.2,209.12,14.95401959]
[1731633306239,14.95401959,209.2,209.1,0.12549]
[1731633306240,14.95401959,209.2,209.14,14.95401959]
[1731633306436,14.95401959,209.22,209.15,0.12549]
[1731633306970,14.95401959,209.22,209.14,14.95401959]
[1731633307188,14.95401959,209.24,209.16,14.95401959]
[1731633307465,14.95401959,209.29,209.21,14.95401959]
[1731633307655,14.95401959,209.28,209.21,14.95401959]
[1731633308263,14.95401959,209.28,209.22,4.7796]
[1731633308932,14.95401959,209.3,209.23,14.95401959]
[1731633309135,7.8162613,209.33,209.22,16.7287]
[1731633309136,14.95401959,209.32,209.25,14.95401959]
[1731633309345,0.4539427,209.33,209.27,14.95401959]
[1731633310052,0.4539427,209.33,209.26,4.7787]
[1731633310840,0.4539427,209.33,209.27,0.12549]
[1731633311039,0.4539427,209.33,209.27,15.07950959]
[1731633311651,0.4539427,209.33,209.27,14.95401959]
[1731633312257,0.4539427,209.33,209.28,4.90369]
[1731633312449,0.4539427,209.33,209.28,16.84939]
[1731633313543,0.4539427,209.33,209.28,31.80340959]
[1731633314068,0.4539427,209.33,209.31,31.17821959]
[1731633314271,0.4539427,209.33,209.32,15.07950959]
[1731633315241,0.4539427,209.33,209.32,15.17950959]
[1731633315655,0.4539427,209.33,209.32,19.95680959]
[1731633316048,10.40796229,209.41,209.32,19.73131959]
[1731633316262,14.95401959,209.41,209.33,14.95401959]
[1731633316459,16.7058,209.51,209.33,14.95401959]
[1731633316460,14.95401959,209.47,209.39,14.95401959]
[1731633316761,14.95401959,209.48,209.41,14.95401959]
[1731633317146,14.95401959,209.42,209.32,16.7207]
[1731633317442,0.1,209.49,209.26,3.72649246]
[1731633317657,0.1,209.45,209.28,0.12549]
[1731633317972,0.12549,209.47,209.27,4.7785]
[1731633317973,0.1,209.42,209.27,4.7785]
[1731633318565,0.1,209.42,209.25,14.95401959]
[1731633318566,14.95401959,209.32,209.25,14.95401959]
[1731633318771,14.95401959,209.4,209.22,3.80759148]
[1731633318772,23.91559061,209.29,209.22,23.91559061]
[1731633318957,23.91559061,209.27,209.19,23.91559061]
[1731633319269,23.91559061,209.25,209.19,0.12549]
[1731633319848,23.91559061,209.25,209.19,4.7803]
[1731633320344,23.91559061,209.24,209.19,16.7311]
[1731633320745,23.91559061,209.2,209.14,11.9534]
[1731633320969,23.91559061,209.28,209.09,4.7826]
[1731633320970,23.91559061,209.16,209.09,4.7826]
[1731633321266,23.91559061,209.14,209.09,4.7826]
[1731633321462,0.1,209.26,209.09,4.7826]
[1731633321768,4.7789,209.25,209.08,11.9566]
[1731633321970,23.91559061,209.1,209.08,11.9566]
[1731633322146,23.91559061,209.16,208.99,0.1]
[1731633322147,23.91559061,209.09,209.02,11.9602]
[1731633322347,23.91559061,209.08,209.02,11.9602]
[1731633322573,0.1,209.2,209.02,35.87579061]
[1731633322763,23.91559061,209.12,209.05,23.91559061]
[1731633322969,23.91559061,209.19,209.11,23.91559061]
[1731633323265,23.91559061,209.23,209.15,23.91559061]
[1731633323476,4.7769,209.34,209.21,23.91559061]
[1731633323653,23.91559061,209.29,209.21,23.91559061]
[1731633323853,23.91559061,209.31,209.23,23.91559061]
[1731633324057,23.91559061,209.33,209.25,23.91559061]
[1731633324346,23.91559061,209.39,209.31,23.91559061]
[1731633324557,23.91559061,209.42,209.34,0.12549]
[1731633324751,23.91559061,209.44,209.35,23.91559061]
[1731633324955,23.91559061,209.42,209.33,23.91559061]
[1731633325166,4.7732,209.5,209.33,23.91559061]
[1731633325167,23.91559061,209.4,209.33,23.91559061]
[1731633325367,23.91559061,209.42,209.33,23.91559061]
[1731633325666,0.1,209.51,209.33,23.91559061]
[1731633325667,23.91559061,209.4,209.33,23.91559061]
[1731633325869,23.91559061,209.36,209.29,23.91559061]
[1731633326369,23.91559061,209.36,209.3,15.513]
[1731633326577,23.91559061,209.32,209.3,15.513]
[1731633326749,20.0,209.37,209.25,15.513]
[1731633326945,38.86457134,209.27,209.2,15.513]
[1731633327145,38.86457134,209.24,209.2,15.513]
[1731633327355,38.86457134,209.23,209.2,15.513]
[1731633327957,38.86457134,209.21,209.14,15.7121]
[1731633328160,38.86457134,209.21,209.15,38.86457134]
[1731633328866,38.86457134,209.21,209.14,15.7121]
[1731633329064,38.86457134,209.21,209.14,20.4934]
[1731633329556,38.86457134,209.19,209.14,32.4471]
[1731633330050,38.86457134,209.19,209.14,15.7121]
[1731633330249,38.86457134,209.17,209.09,54.95217134]
[1731633330576,38.86457134,209.19,209.11,38.99006134]
[1731633330783,38.86457134,209.21,209.13,38.86457134]
[1731633330961,38.86457134,209.17,209.1,11.956]
[1731633331168,0.1,209.25,209.1,11.956]
[1731633331169,38.86457134,209.15,209.1,11.956]
[1731633331681,38.86457134,209.11,209.06,4.7832]
[1731633331884,38.86457134,209.13,209.06,4.7832]
[1731633332178,38.86457134,209.11,209.06,11.9582]
[1731633334285,6.3465,209.17,209.06,11.9582]
[1731633334286,38.86457134,209.13,209.07,0.12549]
[1731633334581,38.86457134,209.15,209.06,50.82277134]
[1731633334763,38.86457134,209.13,209.06,50.82277134]
[1731633335562,38.86457134,209.13,209.06,55.60607134]
[1731633335877,11.1275,209.17,209.04,19.8599]
[1731633335878,38.86457134,209.09,209.04,19.8599]
[1731633336084,43.64557134,209.16,209.01,11.9609]
[1731633336085,38.86457134,209.05,209.01,11.9609]
[1731633336267,55.69807134,209.16,209.04,38.86457134]
[1731633336268,38.86457134,209.11,209.04,38.86457134]
[1731633336468,6.3465,209.17,209.05,0.12549]
[1731633336772,38.86457134,209.14,209.07,38.86457134]
[1731633337459,38.86457134,209.14,209.08,4.7828]
[1731633337866,38.86457134,209.1,209.03,38.86457134]
[1731633338160,38.86457134,209.04,209.0,11.9617]
[1731633338362,55.59807134,209.16,208.99,15.7155]
[1731633338363,38.86457134,209.01,208.99,15.7155]
[1731633338582,38.86457134,209.03,208.99,20.5002]
[1731633338883,38.86457134,209.02,208.99,15.7155]
[1731633339383,38.86457134,209.04,208.99,15.7155]
[1731633339592,38.86457134,209.04,208.99,20.5003]
[1731633339881,38.86457134,209.04,208.95,11.9644]
[1731633339882,38.86457134,209.02,208.95,11.9644]
[1731633340687,38.86457134,209.0,208.95,11.9644]
[1731633340988,38.86457134,209.02,208.95,11.9644]
[1731633341169,23.86457134,209.02,208.95,16.7502]
[1731633341368,38.86457134,209.01,208.95,16.7502]
[1731633342188,38.86457134,209.01,208.94,15.7479]
[1731633342371,38.86457134,208.99,208.94,15.7479]
[1731633343013,38.86457134,208.98,208.94,15.7479]
[1731633343190,38.86457134,209.0,208.94,20.5338]
[1731633343395,38.86457134,209.02,208.94,59.39837134]
[1731633343684,38.86457134,209.0,208.94,20.5338]
[1731633343886,38.86457134,209.02,208.94,32.4989]
[1731633344071,38.86457134,209.02,208.95,38.86457134]
[1731633344273,38.86457134,209.04,208.95,38.86457134]
[1731633344874,38.86457134,209.02,208.95,38.86457134]
[1731633345080,38.86457134,209.02,208.95,43.65027134]
[1731633345286,43.64897134,209.01,208.94,66.57757134]
[1731633345494,43.64897134,209.01,208.94,71.36357134]
[1731633345674,38.86457134,209.01,208.94,71.36357134]
[1731633345865,38.86457134,209.07,209.0,38.86457134]
[1731633346074,38.86457134,209.11,209.03,38.86457134]
[1731633346671,38.86457134,209.13,209.05,38.86457134]
[1731633346883,23.94957148,209.16,209.07,23.94957148]
[1731633347181,6.6627,209.22,209.09,23.94957148]
[1731633347182,23.94957148,209.17,209.09,23.94957148]
[1731633347391,23.94957148,209.15,209.09,23.94957148]
[1731633347590,23.94957148,209.13,209.06,23.94957148]
[1731633347798,23.94957148,209.11,209.04,15.3666]
[1731633348777,35.68771818,209.11,209.04,20.1502]
[1731633348978,35.68771818,209.15,209.07,35.68771818]
[1731633349188,42.35041818,209.22,209.04,32.1096]
[1731633349189,35.68771818,209.19,209.11,35.68771818]
[1731633349388,35.68771818,209.17,209.09,35.68771818]
[1731633349597,35.68771818,209.15,209.07,35.68771818]
[1731633349800,35.68771818,209.15,209.04,32.1096]
[1731633349801,35.68771818,209.15,209.09,35.68771818]
[1731633350484,35.68771818,209.15,209.07,35.68771818]
[1731633351596,35.68771818,209.1,209.04,27.326]
[1731633351789,35.68771818,209.05,208.99,16.001]
[1731633352598,0.1,209.14,208.99,56.47351818]
[1731633352599,35.68771818,209.07,208.99,56.47351818]
[1731633352781,35.68771818,209.06,208.99,20.7858]
[1731633352986,35.68771818,209.08,209.01,35.68771818]
[1731633353181,35.68771818,209.08,209.0,35.68771818]
[1731633353698,35.68771818,209.08,208.99,32.748]
[1731633353699,35.68771818,209.12,209.05,35.68771818]
[1731633354601,35.68771818,209.2,209.11,35.68771818]
[1731633354910,35.68771818,209.2,209.13,35.68771818]
[1731633355290,35.68771818,209.17,209.09,35.68771818]
[1731633356203,35.68771818,209.17,209.1,4.7824]
[1731633356404,4.7804,209.19,209.11,35.68771818]
[1731633356405,35.68771818,209.19,209.11,35.68771818]
[1731633356592,35.68771818,209.23,209.15,35.68771818]
[1731633356795,35.68771818,209.25,209.17,35.68771818]
[1731633357104,42.33741818,209.27,209.19,35.68771818]
[1731633357503,35.68771818,209.27,209.19,35.68771818]
[1731633357688,35.68771818,209.27,209.18,16.625]
[1731633357689,35.68771818,209.23,209.18,16.625]
[1731633358051,35.68771818,209.25,209.18,16.625]
[1731633358311,4.7792,209.24,209.18,16.625]
[1731633358510,35.68771818,209.21,209.14,4.7814]
[1731633358721,35.68771818,209.17,209.13,16.1609]
[1731633359010,35.68771818,209.17,209.09,35.68771818]
[1731633359182,35.68771818,209.15,209.09,11.9561]
[1731633359383,35.68771818,209.15,209.09,16.7387]
[1731633359583,35.68771818,209.13,209.09,16.7387]
[1731633360214,35.68771818,209.13,209.09,11.9561]
[1731633360389,35.68771818,209.11,209.08,16.1609]
[1731633360590,35.68771818,209.13,209.08,28.118]
[1731633361712,35.68771818,209.13,209.08,32.9007]
[1731633361913,55.08661818,209.22,209.03,35.68771818]
[1731633361914,35.68771818,209.11,209.03,35.68771818]
[1731633362119,35.68771818,209.09,209.04,4.7837]
[1731633362322,35.68771818,209.05,208.99,11.9618]
[1731633362504,42.14501818,209.11,208.99,16.7465]
[1731633362505,35.68771818,209.03,208.99,16.7465]
[1731633363015,42.14501818,209.11,208.99,16.7467]
[1731633363016,35.68771818,209.05,208.99,16.7467]
[1731633363317,35.68771818,209.07,209.0,0.12549]
[1731633363498,0.1,209.17,209.0,0.12549]
[1731633363499,35.68771818,209.13,209.05,35.68771818]
[1731633363823,35.68771818,209.19,209.11,35.68771818]
[1731633364123,35.68771818,209.15,209.14,15.5417]
[1731633364314,35.68771818,209.15,209.1,11.956]
[1731633364615,4.7797,209.22,209.1,11.956]
[1731633364813,4.7797,209.22,209.1,16.7384]
[1731633365309,35.68771818,209.18,209.1,16.7384]
[1731633365495,35.68771818,209.24,209.15,35.68771818]
[1731633365913,35.68771818,209.24,209.16,4.781]
[1731633366300,35.68771818,209.22,209.16,16.7335]
[1731633366518,35.68771818,209.21,209.16,16.7335]
[1731633367024,35.68771818,209.17,209.12,4.7819]
[1731633367321,35.68771818,209.13,209.09,15.5417]
[1731633367504,35.68771818,209.13,209.09,20.3242]
[1731633367833,35.68771818,209.15,209.09,32.2807]
[1731633368020,35.68771818,209.19,209.1,35.81320818]
[1731633368317,35.68771818,209.21,209.12,35.68771818]
[1731633368825,35.68771818,209.21,209.1,0.12549]